fUST/lending_fUST_20240208
["ID","MTS","AMOUNT","RATE_DAILY","PERIOD"]
[313442292,1707348639126,-500.0,0.00026208,2]
[313442293,1707348639134,-500.0,0.00026208,2]
[313442294,1707348639143,-500.0,0.00026208,2]
[313442295,1707348639152,-500.0,0.00026208,2]
[313442296,1707348639161,-500.0,0.00026208,2]
[313442297,1707348639170,-651.7539978,0.00026208,2]
[313442298,1707348639180,-500.0,0.00026208,2]
[313442299,1707348639189,-500.0,0.00026208,2]
[313442300,1707348639198,-500.0,0.00026208,2]
[313442301,1707348639207,-500.0,0.00026208,2]
[313442302,1707348639216,-500.0,0.00026208,2]
[313442303,1707348639225,-500.0,0.00026208,2]
[313442304,1707348639234,-500.0,0.00026208,2]
[313442305,1707348639243,-500.0,0.00026208,2]
[313442306,1707348639251,-500.0,0.00026208,2]
[313442307,1707348639261,-27192.08351642,0.00026209,2]
[313442308,1707348639270,-72098.06556257,0.00026209,2]
[313442309,1707348639279,-45255.21960687,0.00026224,2]
[313442310,1707348639287,-10239.26588794,0.00026224,2]
[313442311,1707348639296,-490.27885724,0.0002624,2]
[313442312,1707348639305,-568.74432268,0.00026249,2]
[313442313,1707348639318,-1976.5850255,0.0002661,2]
[313442314,1707348639329,-1454.46022468,0.00026841,2]
[313442315,1707348639338,-233.49653526,0.00027,2]
[313442316,1707348639348,-1382.39428642,0.00027,2]
[313442317,1707348639358,-3632.84448931,0.00027157,5]
[313442318,1707348639367,-11208.01,0.00027397,3]
[313442319,1707348639377,-9340.0,0.00027397,3]
[313442320,1707348639386,-7783.34,0.00027397,3]
[313442321,1707348639396,-6486.11,0.00027397,3]
[313442322,1707348639406,-200.0,0.0002747,15]
[313442323,1707348639416,-200.0,0.0002747,15]
[313442324,1707348639425,-368.0,0.0002747,15]
[313442325,1707348639434,-637.73631123,0.00027891,2]
[313442326,1707348639443,-426.44750157,0.00027998,2]
[313442327,1707348639452,-311.80305171,0.00027998,2]
[313442328,1707348639462,-294.28017175,0.00027998,2]
[313442329,1707348639471,-1146.15207832,0.00027998,2]
[313442330,1707348639480,-741.39467799,0.00027998,2]
[313442331,1707348639490,-640.10711401,0.00027998,2]
[313442332,1707348639499,-166.57694317,0.00027999,2]
[313442333,1707348639508,-3996.72165276,0.00027999,2]
[313442334,1707348639517,-155.07133281,0.00028,2]
[313442335,1707348639526,-51930.88733907,0.00028,2]
[313442336,1707348639536,-1716.49476713,0.00028,2]
[313442337,1707348639545,-1000.0,0.00028,2]
[313442338,1707348639556,-1000.0,0.000285,2]
[313442339,1707348639565,-103264.47179983,0.00028591,2]
[313442340,1707348639574,-819.865414,0.00028591,2]
[313442341,1707348639585,-819.865414,0.00028591,2]
[313442342,1707348639594,-151.0,0.00028591,2]
[313442343,1707348639603,-235.364499,0.00028591,2]
[313442344,1707348639613,-235.364499,0.00028591,2]
[313442345,1707348639623,-151.0,0.00028591,2]
[313442346,1707348639632,-151.0,0.00028591,2]
[313442347,1707348639641,-2173.696,0.00028591,2]
[313442348,1707348639651,-2173.696,0.00028591,2]
[313442349,1707348639661,-5000.0,0.00028735,5]
[313442350,1707348639673,-5000.0,0.00028745,5]
[313442351,1707348639683,-5000.0,0.00028769,5]
[313442352,1707348639692,-1154.74314392,0.00028965,2]
[313442353,1707348639701,-179.58808365,0.00028997,2]
[313442354,1707348639710,-819.8295587,0.00028997,2]
[313442355,1707348639719,-293.01068731,0.00028997,2]
[313442356,1707348639730,-500.0,0.00028998,2]
[313442357,1707348639740,-473.27594756,0.00028998,2]
[313442358,1707348639749,-519.95665446,0.00028998,2]
[313442359,1707348639760,-10511.30477425,0.00028998,2]
[313442360,1707348639769,-230.39692903,0.00028998,2]
[313442361,1707348639779,-348.71208511,0.00028998,2]
[313442362,1707348639788,-222.57618508,0.00028998,2]
[313442363,1707348639798,-169.3588764,0.00028998,2]
[313442364,1707348639807,-345.86990884,0.00028998,2]
[313442365,1707348639818,-7963.27003216,0.00028999,2]
[313442366,1707348639828,-33983.14346049,0.00029,2]
[313442367,1707348639838,-1000.0,0.00029,2]
[313442368,1707348639848,-459.60686937,0.00029,3]
[313442369,1707348639857,-183.31759979,0.00029,10]
[313442370,1707348639866,-153.81696909,0.00029022,2]
[313442371,1707348639875,-153.8831869,0.00029041,2]
[313442372,1707348639884,-153.0,0.00029041,2]
[313442373,1707348639893,-153.0,0.00029041,2]
[313442374,1707348639902,-247.49314245,0.00029165,2]
[313442375,1707348639911,-1025.98354362,0.000295,2]
[313442376,1707348639920,-637.73631123,0.00029642,2]
[313442377,1707348639929,-306.31709258,0.00029797,2]
[313442378,1707348639938,-619.47869525,0.00029797,2]
[313442379,1707348639947,-500.0,0.00029797,2]
[313442380,1707348639956,-500.0,0.00029797,2]
[313442381,1707348639965,-279.18167465,0.00029797,2]
[313442382,1707348639974,-500.0,0.00029797,2]
[313442383,1707348639983,-500.0,0.00029797,2]
[313442384,1707348639992,-500.0,0.00029797,2]
[313442385,1707348640001,-500.0,0.00029797,2]
[313442386,1707348640010,-500.0,0.00029797,2]
[313442387,1707348640019,-500.0,0.00029797,2]
[313442388,1707348640029,-541.54035903,0.00029797,2]
[313442389,1707348640037,-500.0,0.00029797,2]
[313442390,1707348640047,-645.0,0.00029797,2]
[313442391,1707348640056,-413.66018509,0.00029797,2]
[313442392,1707348640065,-500.0,0.00029797,2]
[313442393,1707348640074,-500.0,0.00029797,2]
[313442394,1707348640082,-500.0,0.00029797,2]
[313442395,1707348640091,-500.0,0.00029797,2]
[313442396,1707348640100,-500.0,0.00029797,2]
[313442397,1707348640110,-500.0,0.00029797,2]
[313442398,1707348640120,-500.0,0.00029797,2]
[313442399,1707348640129,-500.0,0.00029797,2]
[313442400,1707348640139,-493.06424962,0.00029797,2]
[313442401,1707348640148,-500.0,0.00029797,2]
[313442402,1707348640157,-2173.696,0.00029798,2]
[313442403,1707348640167,-2173.696,0.00029798,2]
[313442404,1707348640176,-235.364499,0.00029799,2]
[313442405,1707348640185,-235.364499,0.00029799,2]
[313442406,1707348640194,-151.0,0.00029799,2]
[313442407,1707348640203,-151.0,0.00029799,2]
[313442408,1707348640213,-2151.420553,0.000298,2]
[313442409,1707348640223,-151.0,0.00029891,2]
[313442410,1707348640232,-2274.5064198,0.000299,2]
[313442411,1707348640242,-9728.63603501,0.000299,2]
[313442412,1707348640252,-151.0,0.000299,2]
[313442413,1707348640261,-151.0,0.000299,2]
[313442414,1707348640270,-4775.67873401,0.0003,2]
[313442415,1707348640279,-503.98514352,0.0003,14]
[313442416,1707348640289,-349.80791941,0.0003,4]
[313442417,1707348640298,-2986.5693328,0.0003,4]
[313442418,1707348640307,-155.04651395,0.0003,4]
[313442419,1707348640319,-167.32955615,0.0003,2]
[313442420,1707348640329,-6213.79816755,0.0003,2]
[313442421,1707348640338,-2199.84293304,0.0003,2]
[313442422,1707348640348,-154.92253773,0.0003,2]
[313442423,1707348640358,-20986.46336052,0.0003,10]
[313442424,1707348640367,-2066.5637289,0.0003,30]
[313442425,1707348640376,-985.73043499,0.0003,4]
[313442426,1707348640385,-819.865414,0.0003,2]
[313442427,1707348640396,-819.865414,0.0003,2]
[313442428,1707348640406,-257.0,0.0003,2]
[313442429,1707348640416,-5000.0,0.0003004,5]
[313442430,1707348640425,-150.1,0.00030069,2]
[313442431,1707348640434,-151.48228548,0.00030144,7]
[313442432,1707348640443,-200.0,0.00030217,15]
[313442433,1707348640452,-200.0,0.00030217,15]
[313442435,1707348640462,-200.0,0.00030217,15]
[313442437,1707348640471,-200.0,0.00030217,15]
[313442438,1707348640480,-275.0,0.00030217,15]
[313442439,1707348640489,-151.0,0.00030784,2]
[313442440,1707348640498,-155.0,0.00031,2]
[313442441,1707348640507,-1000.0,0.00031,2]
[313442442,1707348640516,-155.0,0.00031,2]
[313442443,1707348640525,-637.73631123,0.00031393,2]
[313442444,1707348640534,-1976.5850255,0.0003161,2]
[313442445,1707348640543,-151.0,0.00031676,2]
[313442446,1707348640552,-180.56266,0.00031776,2]
[313442447,1707348640562,-151.0,0.000319,2]
[313442448,1707348640572,-22868.77399123,0.000319,3]
[313442449,1707348640581,-235.364499,0.000319,2]
[313442450,1707348640590,-235.364499,0.000319,2]
[313442451,1707348640679,-151.0,0.000319,2]
[313442452,1707348640689,-151.0,0.000319,2]
[313442453,1707348640698,-387.53480709,0.000319,2]
[313442454,1707348640784,-1786.16119291,0.000319,2]
[313442455,1707348640793,-9.44791374,0.000319,2]
[313442462,1707348641463,-535.43841798,0.0001705,2]
[313442463,1707348641472,-2033.72801131,0.00027397,3]
[313442464,1707348641486,-1553.76671197,0.00027397,3]
[313442465,1707348641499,-1243.64942372,0.00027397,3]
[313442729,1707348646186,1605.84446556,0.00017,120]
[313442743,1707348646315,-573.955853,0.00027397,3]
[313442745,1707348646326,-1354.95140558,0.000319,2]
[313443747,1707349505062,4000.0,0.00042558,30]
[313443751,1707349642784,10023.064,0.00042558,120]
[313443756,1707349700349,-155.07598723,0.00018798,2]
[313443757,1707349700378,-640.35816557,0.00018798,2]
[313443758,1707349700405,-763.3743027,0.00018798,2]
[313443759,1707349700433,-155.07753877,0.00018799,2]
[313443760,1707349700459,-1488.01609606,0.000188,2]
[313443761,1707349700486,-956.7808324,0.00018806,2]
[313443762,1707349700513,-263.788035,0.00018931,2]
[313443763,1707349700540,-9324.52904227,0.00018974,2]
[313443816,1707349832597,-155.07443573,0.00018797,3]
[313443817,1707349832607,-156.60298543,0.00018874,2]
[313443818,1707349832616,-150.55057884,0.00018974,2]
[313443819,1707349832628,-1258.31100922,0.00018974,2]
[313443820,1707349832652,-2684.0384924,0.00018974,2]
[313443992,1707349838557,-11482.57087727,0.00018974,2]
[313443994,1707349838566,-1164.2470634,0.00019126,2]
[313443996,1707349838576,-168.465178,0.00019178,2]
[313443998,1707349838584,-168.703372,0.00019178,2]
[313444000,1707349838593,-155.07443573,0.0002,2]
[313444002,1707349838603,-155.07443573,0.0002,2]
[313444004,1707349838612,-250.0,0.0002086,2]
[313444006,1707349838621,-200.0,0.0002087,2]
[313444008,1707349838631,-19099.49040253,0.00021777,2]
[313444010,1707349838640,-166.666666,0.00021918,2]
[313444012,1707349838651,-1743.90819804,0.00021997,2]
[313444014,1707349838661,-3980.62518534,0.00022,2]
[313444016,1707349838670,-326.42112036,0.0002243,2]
[313444018,1707349838679,-166.666666,0.00022431,2]
[313444020,1707349838689,-166.666666,0.00022944,2]
[313444022,1707349838699,-280.0,0.00022957,7]
[313444023,1707349838709,-1263.05688852,0.00023,2]
[313444025,1707349838718,-9967.3761107,0.00023,2]
[313444026,1707349838728,-166.666666,0.00023456,2]
[313444027,1707349838738,-797.35163824,0.00023644,5]
[313444028,1707349838748,-166.666666,0.00023969,2]
[313444029,1707349838757,-166.666666,0.00024482,2]
[313444030,1707349838767,-9728.63603501,0.00024589,2]
[313444031,1707349838777,-295.12031308,0.000249,2]
[313444032,1707349838786,-3148.1400238,0.00024999,2]
[313444033,1707349838795,-6299.4069347,0.00025,2]
[313444034,1707349838805,-4737.99496136,0.00025,2]
[313444035,1707349838814,-535.1407664,0.00025,2]
[313444036,1707349838823,-155.07443573,0.00025252,2]
[313444037,1707349838832,-335.52992191,0.00025252,2]
[313444038,1707349838842,-391.0,0.00025253,7]
[313444039,1707349838853,-309.91471444,0.00025317,2]
[313444040,1707349838862,-3171.48803661,0.00025318,2]
[313444041,1707349838874,-4234.27036078,0.00025318,2]
[313444042,1707349838883,-1520.04502317,0.00025319,5]
[313444043,1707349838895,-2112.79946614,0.00025319,5]
[313444044,1707349838904,-1454.46022468,0.00026102,2]
[313444045,1707349838913,-166.57694317,0.00026105,2]
[313444046,1707349838928,-294.28017175,0.00026105,2]
[313444047,1707349838938,-426.44750157,0.00026105,2]
[313444048,1707349838947,-311.80305171,0.00026105,2]
[313444049,1707349838956,-741.39467799,0.00026105,2]
[313444050,1707349838965,-1146.15207832,0.00026105,2]
[313444051,1707349838974,-375.95098502,0.00026106,2]
[313444052,1707349838983,-224.70503373,0.00026107,2]
[313444053,1707349838993,-157.68089384,0.00026272,2]
[313444054,1707349839002,-152.4873734,0.00026273,2]
[313444055,1707349839011,-787.06243797,0.00026273,2]
[313444056,1707349839019,-640.21534338,0.00026317,2]
[313444057,1707349839028,-472.69806761,0.00026317,2]
[313444058,1707349839037,-247.48848803,0.00026317,2]
[313444059,1707349839046,-3996.72165276,0.00026318,2]
[313444060,1707349839056,-462.07022,0.00026318,2]
[313444061,1707349839065,-500.0,0.00026318,2]
[313444062,1707349839074,-385.86122992,0.00026318,2]
[313444063,1707349839083,-462.33460075,0.00026318,2]
[313444064,1707349839092,-500.0,0.00026318,2]
[313444065,1707349839101,-581.55049304,0.00026318,2]
[313444066,1707349839111,-268.05849428,0.00026318,2]
[313444067,1707349839120,-500.0,0.00026318,2]
[313444068,1707349839129,-500.0,0.00026318,2]
[313444069,1707349839138,-500.0,0.00026318,2]
[313444070,1707349839147,-225.13155146,0.00026318,2]
[313444071,1707349839156,-500.0,0.00026318,2]
[313444072,1707349839165,-500.0,0.00026318,2]
[313444073,1707349839174,-186.30111208,0.00026318,2]
[313444074,1707349839184,-362.65281678,0.00026318,2]
[313444075,1707349839193,-461.5966179,0.00026318,2]
[313444076,1707349839202,-500.0,0.00026318,2]
[313444077,1707349839212,-500.0,0.00026318,2]
[313444078,1707349839221,-500.0,0.00026318,2]
[313444079,1707349839230,-500.0,0.00026318,2]
[313444080,1707349839239,-500.0,0.00026318,2]
[313444081,1707349839248,-500.0,0.00026318,2]
[313444082,1707349839257,-500.0,0.00026318,2]
[313444083,1707349839266,-500.0,0.00026318,2]
[313444084,1707349839275,-500.0,0.00026318,2]
[313444085,1707349839284,-500.0,0.00026318,2]
[313444086,1707349839293,-500.0,0.00026318,2]
[313444087,1707349839303,-500.0,0.00026318,2]
[313444088,1707349839312,-500.0,0.00026318,2]
[313444089,1707349839322,-500.0,0.00026318,2]
[313444090,1707349839332,-500.0,0.00026318,2]
[313444091,1707349839341,-500.0,0.00026318,2]
[313444092,1707349839351,-500.0,0.00026318,2]
[313444093,1707349839360,-501.94888644,0.00026318,2]
[313444094,1707349839369,-500.0,0.00026318,2]
[313444095,1707349839378,-500.0,0.00026318,2]
[313444096,1707349839387,-500.0,0.00026318,2]
[313444097,1707349839396,-500.0,0.00026318,2]
[313444098,1707349839406,-500.0,0.00026318,2]
[313444099,1707349839414,-500.0,0.00026318,2]
[313444100,1707349839423,-500.0,0.00026318,2]
[313444101,1707349839432,-500.0,0.00026318,2]
[313444102,1707349839442,-500.0,0.00026318,2]
[313444103,1707349839451,-500.0,0.00026318,2]
[313444104,1707349839461,-500.0,0.00026318,2]
[313444105,1707349839470,-500.0,0.00026318,2]
[313444106,1707349839481,-500.0,0.00026318,2]
[313444107,1707349839490,-44993.86078507,0.00026319,2]
[313444108,1707349839500,-50000.0,0.00026319,2]
[313444109,1707349839510,-60939.6712164,0.00026327,2]
[313444110,1707349839520,-404.88382051,0.00026327,2]
[313444111,1707349839530,-1382.39428642,0.00027,2]
[313444112,1707349839539,-233.49653526,0.00027,2]
[313444113,1707349839548,-537.51661855,0.00027396,2]
[313444114,1707349839558,-200.0,0.00027778,15]
[313444115,1707349839567,-348.0,0.00027778,15]
[313444116,1707349839576,-2241.09239999,0.000279,2]
[313444117,1707349839585,-1716.49476713,0.00028,2]
[313444118,1707349839594,-51930.88733907,0.00028,2]
[313444119,1707349839605,-10439.15149397,0.00028,20]
[313444120,1707349839614,-160.38154674,0.0002828,2]
[313444121,1707349839623,-994.66450876,0.00028798,2]
[313444122,1707349839632,-718.88158463,0.000289,2]
[313444123,1707349839642,-459.60686937,0.00029,3]
[313444124,1707349839653,-56306.24439266,0.00029,2]
[313444125,1707349839662,-183.31759979,0.00029,10]
[313444126,1707349839672,-151.48228548,0.00029321,2]
[313444127,1707349839682,-153.8831869,0.00029589,2]
[313444128,1707349839692,-153.0,0.00029589,2]
[313444129,1707349839702,-153.0,0.00029589,2]
[313444130,1707349839711,-2151.420553,0.000298,2]
[313444131,1707349839721,-345.86990884,0.00029995,2]
[313444132,1707349839735,-500.0,0.00029995,2]
[313444133,1707349839746,-179.58808365,0.00029995,2]
[313444134,1707349839756,-348.71208511,0.00029995,2]
[313444135,1707349839851,-293.01068731,0.00029995,2]
[313444136,1707349839861,-519.95665446,0.00029995,2]
[313444137,1707349839870,-819.8295587,0.00029995,2]
[313444138,1707349839880,-1154.74314392,0.00029995,2]
[313444139,1707349839889,-222.57618508,0.00029996,2]
[313444140,1707349839899,-169.3588764,0.00029996,2]
[313444141,1707349839908,-7963.27003216,0.00029996,2]
[313444142,1707349839917,-10511.30477425,0.00029996,2]
[313444143,1707349839927,-4775.67873401,0.0003,2]
[313444144,1707349839936,-2986.5693328,0.0003,4]
[313444145,1707349839946,-349.80791941,0.0003,4]
[313444146,1707349839955,-503.98514352,0.0003,14]
[313444147,1707349839964,-985.73043499,0.0003,4]
[313444148,1707349839974,-155.07443573,0.0003,4]
[313444149,1707349839983,-236.0,0.0003,2]
[313444150,1707349839993,-150.1,0.00030069,2]
[313444151,1707349840002,-718.88158457,0.00030344,2]
[313444152,1707349840012,-200.0,0.00030556,15]
[313444153,1707349840021,-200.0,0.00030556,15]
[313444154,1707349840031,-368.0,0.00030556,15]
[313444155,1707349840040,-155.0,0.00031,2]
[313444156,1707349840049,-352.91467007,0.00031775,4]
[313444157,1707349840059,-930.217886,0.00031776,2]
[313444158,1707349840069,-555.783267,0.00031776,2]
[313444159,1707349840078,-718.88158457,0.00031789,2]
[313444160,1707349840087,-17170.66227847,0.00031888,2]
[313444161,1707349840100,-310.06511743,0.000319,2]
[313444162,1707349840110,-156.1249668,0.000319,4]
[313444163,1707349840120,-22868.77399123,0.000319,3]
[313444164,1707349840130,-457.41249623,0.00031996,2]
[313444165,1707349840139,-1432.84273963,0.00031998,4]
[313444166,1707349840149,-2108.0159994,0.00031998,4]
[313444167,1707349840158,-2212.08613666,0.00031998,4]
[313444168,1707349840167,-3823.62557756,0.00031998,4]
[313444169,1707349840176,-205.65532795,0.00031998,4]
[313444170,1707349840186,-157.77822587,0.00031999,2]
[313444171,1707349840196,-156.6764991,0.00031999,4]
[313444172,1707349840205,-8199.8,0.00031999,2]
[313444173,1707349840214,-8199.8,0.00031999,2]
[313444174,1707349840223,-8199.8,0.00031999,2]
[313444175,1707349840232,-8199.8,0.00031999,2]
[313444176,1707349840242,-8199.8,0.00031999,2]
[313444177,1707349840250,-8199.8,0.00031999,2]
[313444178,1707349840259,-8199.8,0.00031999,2]
[313444179,1707349840268,-8199.8,0.00031999,2]
[313444180,1707349840277,-8199.8,0.00031999,2]
[313444181,1707349840286,-8199.8,0.00031999,2]
[313444182,1707349840297,-214.42196481,0.00031999,7]
[313444183,1707349840306,-433.63508668,0.00031999,7]
[313444184,1707349840316,-500.0,0.00031999,7]
[313444185,1707349840325,-500.0,0.00031999,7]
[313444186,1707349840334,-500.0,0.00031999,7]
[313444187,1707349840344,-500.0,0.00031999,7]
[313444188,1707349840354,-195.42717225,0.00031999,7]
[313444189,1707349840363,-500.0,0.00031999,7]
[313444190,1707349840373,-500.0,0.00031999,7]
[313444191,1707349840383,-500.0,0.00031999,7]
[313444192,1707349840392,-500.0,0.00031999,7]
[313444193,1707349840402,-500.0,0.00031999,7]
[313444194,1707349840412,-289.46160671,0.00031999,7]
[313444195,1707349840422,-579.07825132,0.00031999,7]
[313444196,1707349840432,-500.0,0.00031999,7]
[313444197,1707349840441,-500.0,0.00031999,7]
[313444198,1707349840450,-500.0,0.00031999,7]
[313444199,1707349840459,-634.9654699,0.00031999,7]
[313444200,1707349840469,-170.81723389,0.00031999,7]
[313444202,1707349840478,-500.0,0.00031999,7]
[313444204,1707349840489,-500.0,0.00031999,7]
[313444206,1707349840499,-500.0,0.00031999,7]
[313444207,1707349840509,-500.0,0.00031999,7]
[313444208,1707349840518,-500.0,0.00031999,7]
[313444209,1707349840527,-500.0,0.00031999,7]
[313444210,1707349840536,-500.0,0.00031999,7]
[313444211,1707349840545,-500.0,0.00031999,7]
[313444212,1707349840554,-500.0,0.00031999,7]
[313444213,1707349840563,-500.0,0.00031999,7]
[313444214,1707349840573,-500.0,0.00031999,7]
[313444215,1707349840582,-185.84360858,0.00031999,7]
[313444216,1707349840591,-500.0,0.00031999,7]
[313444217,1707349840601,-500.0,0.00031999,7]
[313444218,1707349840611,-547.91927489,0.00031999,7]
[313444219,1707349840621,-593.5,0.00031999,7]
[313444220,1707349840630,-462.46210771,0.00031999,7]
[313444221,1707349840639,-224.09805553,0.00031999,7]
[313444222,1707349840684,-500.0,0.00031999,7]
[313444223,1707349840694,-161.9253713,0.00031999,7]
[313444224,1707349840703,-103192.39718671,0.00032,15]
[313444225,1707349840713,-3000.0,0.00032,10]
[313444226,1707349840722,-53769.3778388,0.00032,15]
[313444240,1707349841646,-301.87875,0.0002499,3]
[313444242,1707349841659,-806.55555255,0.0002499,3]
[313444243,1707349841671,-10522.36569745,0.0002499,3]
[313444244,1707349841681,-40297.96659035,0.00032,15]
[313444245,1707349841694,-7115.3241016,0.00032,15]
[313444246,1707349841706,-3606.27720025,0.00032,15]
[313444247,1707349841718,-3024.57019212,0.00032,15]
[313444254,1707349843686,-4215.05987283,0.00032,15]
[313444256,1707349843699,-14453.15119047,0.00032,15]
[313444269,1707350405322,4000.0,0.0004247,30]
[313444409,1707351038686,-155.08064193,0.0002033,4]
[313444411,1707351038697,-2116.9320654,0.00020332,2]
[313444412,1707351038741,-6659.20325516,0.00020332,2]
[313444421,1707351041802,-1000.0,0.00020332,2]
[313444422,1707351041815,-10023.94142474,0.00020332,2]
[313444423,1707351041824,-263.7880358,0.00020553,2]
[313444424,1707351041833,-720.8403274,0.00020787,2]
[313444425,1707351041843,-1176.04827045,0.00020978,3]
[313444426,1707351041857,-1954.88341978,0.00020978,3]
[313444427,1707351041869,-2027.22830977,0.00020978,3]
[313444428,1707351041878,-2192.05164608,0.00020988,4]
[313444429,1707351041889,-996.28439946,0.00020988,4]
[313444449,1707351044014,-2608.23224957,0.00020988,4]
[313444450,1707351044027,-8464.51222443,0.00020988,4]
[313444451,1707351044042,-898.39954919,0.00020988,4]
[313444452,1707351044054,-1623.6353265,0.00020988,4]
[313444594,1707351304607,4000.0,0.00042467,30]
[313444595,1707351368666,9717.82841585,0.000201,4]
[313444596,1707351368695,21136.77618892,0.000201,4]
[313444597,1707351682102,900012.825427,0.00042464,30]
[313444650,1707352204855,4000.0,0.00042464,30]
[313444675,1707352233884,-155.08374522,0.00018896,3]
[313444676,1707352233894,-878.54131859,0.00019104,2]
[313444677,1707352233905,-609.47477747,0.00019104,2]
[313444678,1707352233914,-3000.0,0.00019105,2]
[313444679,1707352233924,-168.480407,0.00019178,2]
[313444680,1707352233933,-3180.8786292,0.00019305,2]
[313444681,1707352233942,-24900.0,0.00019419,2]
[313444682,1707352233951,-168.242468,0.00019713,2]
[313444683,1707352233960,-155.6019502,0.00020986,2]
[313444684,1707352233969,-2709.69212169,0.00020987,5]
[313444685,1707352233978,-5973.58864737,0.00021,2]
[313444686,1707352233987,-200.0,0.0002136,7]
[313444687,1707352233996,-166.666666,0.00021918,2]
[313444688,1707352234005,-3289.15522445,0.00022,2]
[313444979,1707352244455,-691.46996089,0.00022,2]
[313444980,1707352244465,-166.666666,0.00022431,2]
[313444981,1707352244474,-166.666666,0.00022944,2]
[313444982,1707352244483,-980.38614483,0.00023,2]
[313444983,1707352244496,-3264.41885859,0.00023,2]
[313444984,1707352244508,-3388.01377407,0.00023,2]
[313444985,1707352244569,-1186.74658297,0.00023,2]
[313444986,1707352244582,-1147.81075024,0.00023,2]
[313444987,1707352244592,-1263.05688852,0.00023,2]
[313444988,1707352244601,-166.666666,0.00023456,2]
[313444989,1707352244611,-280.0,0.00023496,7]
[313444990,1707352244620,-166.666666,0.00023969,2]
[313444991,1707352244630,-166.666666,0.00024482,2]
[313444992,1707352244638,-7405.75839739,0.00025,2]
[313444993,1707352244647,-1231.19314758,0.00025,2]
[313444994,1707352245101,-1429.55506106,0.00025,2]
[313444995,1707352245112,-2077.24675272,0.00025,2]
[313444996,1707352245121,-1296.21288267,0.00025,2]
[313444997,1707352245134,-3151.48,0.00025,2]
[313444998,1707352245145,-1155.02790502,0.00025,2]
[313444999,1707352245156,-696.68614701,0.00025,2]
[313445000,1707352245165,-281.66018576,0.00025,2]
[313445001,1707352245177,-53.86973615,0.00025,2]
[313445003,1707352245187,-746.9794147,0.00025297,2]
[313445005,1707352245203,-313.46532129,0.00025297,2]
[313445006,1707352245215,-4605.64282817,0.00025297,2]
[313445007,1707352245224,-391.0,0.00025845,7]
[313445008,1707352245233,-310.02325175,0.00026193,2]
[313445009,1707352245242,-471.19712808,0.00026273,2]
[313445010,1707352245251,-1000.0,0.0002628,3]
[313445011,1707352245260,-168.2846886,0.0002628,2]
[313445012,1707352245269,-700.0,0.0002628,2]
[313445013,1707352245278,-194.18315321,0.00026282,2]
[313445014,1707352245288,-120.61670504,0.00026317,3]
[313445015,1707352245301,-622.93575481,0.00026317,3]
[313445058,1707352245918,-186.93356672,0.0002628,2]
[313445060,1707352245929,-5995.94355729,0.00026317,3]
[313445062,1707352245941,-2093.14398286,0.00026317,3]
[313445063,1707352245951,-199.59356808,0.00026326,2]
[313445064,1707352245960,-559.45309906,0.00026326,2]
[313457075,1707352953489,4000.0,0.00042459,30]
[313457078,1707353031920,4000.0,0.00042459,30]
[313457079,1707353047546,4000.0,0.00042459,30]
[313457083,1707353080781,4000.0,0.00042459,30]
[313457084,1707353105118,4000.0,0.00042459,30]
[313457086,1707353222996,4289.10775907,0.00042459,30]
[313457204,1707353432557,-155.07598723,0.00019175,3]
[313457205,1707353432567,-239.34045224,0.00019176,2]
[313457356,1707353441413,-1851.19758287,0.00019176,2]
[313457358,1707353441422,-168.242468,0.00019178,2]
[313457360,1707353441432,-24900.0,0.00021133,2]
[313457362,1707353441440,-257.882379,0.00021353,2]
[313457364,1707353441449,-185.90954586,0.000219,2]
[313457366,1707353441458,-166.666666,0.00021918,2]
[313457368,1707353441468,-284.2184862,0.00021937,2]